bitfinex-derivatives/quotes_SOLF0:USTF0_20241222
["timestamp","ask_amount","ask_price","bid_price","bid_amount"]
[1734860146124,16.73745907,185.33,185.23,2.62]
[1734860146626,2.7005,185.29,185.23,5.3212]
[1734860147321,2.7005,185.29,185.24,2.7011]
[1734860148322,16.73745907,185.33,185.23,2.62]
[1734860148623,2.7002,185.31,185.26,2.7008]
[1734860149524,16.73745907,185.33,185.23,2.62]
[1734860150121,16.73745907,185.33,185.23,5.3213]
[1734860151528,2.7006,185.28,185.23,5.3213]
[1734860153923,4.14409087,185.34,185.23,2.62]
[1734860154123,2.6998,185.33,185.28,2.7005]
[1734860154320,4.14409087,185.34,185.27,2.62]
[1734860156327,2.7,185.33,185.28,2.7005]
[1734860157032,2.7001,185.32,185.27,5.3207]
[1734860157529,2.7001,185.31,185.27,5.3207]
[1734860158932,4.14409087,185.34,185.27,5.3207]
[1734860159132,2.7,185.32,185.27,5.3207]
[1734860159331,4.14409087,185.34,185.27,2.62]
[1734860159935,4.14409087,185.34,185.29,2.7003]
[1734860160532,2.6999,185.33,185.28,2.7005]
[1734860160832,4.14409087,185.34,185.27,2.62]
[1734860161224,4.14409087,185.34,185.3,2.7003]
[1734860161631,4.14409087,185.34,185.27,2.62]
[1734860161832,4.14409087,185.34,185.29,2.7004]
[1734860163031,4.14409087,185.34,185.3,2.7002]
[1734860163446,6.84379087,185.34,185.27,2.62]
[1734860164334,4.14409087,185.34,185.29,2.7003]
[1734860164541,4.14409087,185.34,185.27,2.62]
[1734860165142,4.14409087,185.34,185.29,2.7003]
[1734860165344,4.14409087,185.34,185.27,2.62]
[1734860165843,4.14409087,185.34,185.27,11.43594717]
[1734860167042,4.14409087,185.34,185.27,2.62]
[1734860167748,4.14409087,185.34,185.29,2.7003]
[1734860168443,4.14409087,185.34,185.27,5.3206]
[1734860168644,4.14409087,185.34,185.27,2.7006]
[1734860169244,4.14409087,185.34,185.26,2.62]
[1734860171045,3.2993,185.42,185.28,8.81594717]
[1734860171353,11.43594717,185.41,185.28,8.81594717]
[1734860171649,2.6992,185.38,185.28,8.81594717]
[1734860172154,2.6994,185.37,185.31,2.7]
[1734860172445,11.43594717,185.41,185.31,2.7]
[1734860172750,8.81594717,185.38,185.3,2.62]
[1734860172947,8.81594717,185.38,185.29,2.7003]
[1734860172948,4.2409,185.37,185.29,2.7003]
[1734860173451,2.6998,185.34,185.29,2.7003]
[1734860173852,2.7001,185.32,185.27,2.7006]
[1734860174349,8.81594717,185.35,185.27,2.7006]
[1734860174650,4.2409,185.37,185.27,2.7006]
[1734860174951,2.6999,185.33,185.28,2.7006]
[1734860176150,4.2409,185.37,185.26,2.62]
[1734860176351,2.6997,185.35,185.3,2.7002]
[1734860177048,4.2409,185.37,185.26,2.62]
[1734860177254,2.6998,185.34,185.28,2.7005]
[1734860177455,2.6998,185.34,185.26,2.62]
[1734860178350,2.6998,185.34,185.29,2.7004]
[1734860179459,1.6209,185.37,185.26,2.62]
[1734860179660,4.3203,185.37,185.32,2.6999]
[1734860181155,1.6209,185.37,185.34,2.6996]
[1734860182463,1.6209,185.37,185.35,2.6995]
[1734860182656,3.6989,185.4,185.35,2.6995]
[1734860182851,3.2993,185.42,185.31,16.72550605]
[1734860183051,3.2993,185.42,185.37,2.6993]
[1734860183359,5.80842712,185.43,185.35,2.62]
[1734860183566,4.14212712,185.43,185.4,2.6987]
[1734860184057,32.34938465,185.47,185.4,2.6987]
[1734860184452,4.9728,185.48,185.37,2.62]
[1734860184652,4.9728,185.48,185.37,16.72550605]
[1734860185056,4.9728,185.48,185.37,14.10550605]
[1734860185352,2.62,185.47,185.32,4.8431]
[1734860185554,2.62,185.47,185.36,2.6994]
[1734860185758,14.10550605,185.46,185.36,2.6994]
[1734860186058,2.6989,185.4,185.33,2.62]
[1734860186756,2.6987,185.42,185.33,2.62]
[1734860186957,2.62,185.43,185.33,2.62]
[1734860187458,2.62,185.43,185.3,14.10550605]
[1734860187664,16.72550605,185.43,185.3,2.76]
[1734860187960,0.95985708,185.42,185.3,2.76]
[1734860188152,2.6997,185.35,185.3,2.76]
[1734860188351,2.76,185.38,185.3,2.76]
[1734860188556,2.6995,185.36,185.31,2.7001]
[1734860188964,2.76,185.39,185.3,2.76]
[1734860189164,2.6993,185.37,185.32,2.7]
[1734860191059,2.6991,185.38,185.33,2.6998]
[1734860191260,2.76,185.39,185.3,2.76]
[1734860191963,2.6996,185.36,185.31,2.7]
[1734860192162,2.76,185.39,185.25,4.9121]
[1734860192163,16.86550605,185.39,185.25,4.9121]
[1734860192462,16.86550605,185.39,185.27,2.76]
[1734860192867,2.6997,185.34,185.29,2.7004]
[1734860194163,2.6999,185.33,185.28,2.7006]
[1734860195758,2.76,185.35,185.27,2.76]
[1734860195961,2.76,185.35,185.24,115.13262481]
[1734860196665,2.7003,185.31,185.26,2.7009]
[1734860196862,2.76,185.35,185.24,115.13262481]
[1734860198457,2.6999,185.33,185.28,2.7006]
[1734860199765,2.76,185.35,185.24,115.13262481]
[1734860199966,2.6997,185.34,185.28,2.7005]
[1734860200366,4.14292169,185.39,185.28,2.76]
[1734860200668,6.90292169,185.39,185.28,2.76]
[1734860201064,2.6994,185.36,185.31,2.7]
[1734860201560,4.14292169,185.39,185.28,16.86550605]
[1734860201763,6.84192169,185.39,185.34,2.6996]
[1734860202161,2.6995,185.36,185.32,2.76]
[1734860202365,1.0,185.42,185.32,2.76]
[1734860202561,2.76,185.44,185.33,1.5852]
[1734860202958,29.72938465,185.46,185.33,1.5852]
[1734860203163,2.76,185.45,185.33,4.9541]
[1734860203668,7.43234616,185.48,185.35,14.10550605]
[1734860203864,7.43234616,185.48,185.36,2.76]
[1734860204266,10.13004616,185.48,185.42,2.6984]
[1734860204667,2.6977,185.48,185.42,2.6984]
[1734860205965,81.17505087,185.52,185.41,2.76]
[1734860206164,81.17505087,185.52,185.42,3.2846]
[1734860206365,2.6973,185.51,185.45,2.6981]
[1734860206561,78.47785087,185.52,185.45,2.76]
[1734860207269,81.17505087,185.52,185.45,2.76]
[1734860207772,4.55813,185.54,185.45,2.76]
[1734860207962,1.86123,185.54,185.45,2.76]
[1734860209168,0.19253,185.54,185.45,2.76]
[1734860210073,2.6974,185.5,185.45,5.4581]
[1734860210370,0.19253,185.54,185.45,2.76]
[1734860211070,2.6974,185.51,185.45,5.4581]
[1734860212066,0.19253,185.54,185.45,2.76]
[1734860212972,0.19253,185.54,185.51,2.6972]
[1734860213164,0.19253,185.54,185.5,3.04]
[1734860213368,0.19253,185.54,185.51,3.04]
[1734860213575,0.19253,185.54,185.52,3.04]
[1734860213771,0.19253,185.54,185.52,5.737]
[1734860214270,0.19253,185.54,185.53,2.697]
[1734860214863,0.19253,185.54,185.49,3.04]
[1734860215670,0.19253,185.54,185.52,2.697]
[1734860217872,2.6964,185.58,185.52,2.697]
[1734860220068,5.96552637,185.6,185.52,2.697]
[1734860220273,2.6964,185.57,185.52,2.697]
[1734860220476,2.6964,185.57,185.5,3.3126]
[1734860220772,5.96552637,185.6,185.5,6.0098]
[1734860220773,2.6966,185.56,185.5,6.0098]
[1734860221864,2.697,185.53,185.47,2.6977]
[1734860222070,3.04,185.58,185.45,3.04]
[1734860222270,3.1381,185.57,185.45,3.04]
[1734860222571,2.6971,185.53,185.47,2.6978]
[1734860222969,18.71320605,185.57,185.45,3.04]
[1734860223274,2.6967,185.55,185.45,3.04]
[1734860223772,9.00552637,185.6,185.45,3.04]
[1734860224373,9.00552637,185.6,185.47,14.10550605]
[1734860224374,2.6961,185.59,185.47,14.10550605]
[1734860224571,2.6961,185.59,185.48,3.2505]
[1734860224774,2.6961,185.59,185.49,3.04]
[1734860225473,2.6961,185.59,185.53,2.6968]
[1734860225672,5.96552637,185.6,185.53,3.04]
[1734860227076,5.96552637,185.6,185.57,2.6964]
[1734860227275,5.96552637,185.6,185.53,3.04]
[1734860227578,3.04,185.69,185.53,17.14550605]
[1734860227768,2.6951,185.66,185.53,17.14550605]
[1734860228271,2.6951,185.66,185.6,2.6958]
[1734860228575,2.6951,185.66,185.6,5.7358]
[1734860229378,17.14550605,185.71,185.6,3.04]
[1734860229578,3.04,185.71,185.6,3.04]
[1734860229779,14.10550605,185.72,185.6,3.04]
[1734860229780,17.14550605,185.72,185.6,3.04]
[1734860230176,3.04,185.72,185.6,3.04]
[1734860230372,14.10550605,185.69,185.6,3.04]
[1734860230774,2.92543,185.64,185.6,3.04]
[1734860231377,0.23003,185.64,185.6,3.04]
[1734860231871,2.92553,185.64,185.6,3.04]
[1734860232070,0.23003,185.64,185.57,7.3179]
[1734860232275,0.23003,185.64,185.57,4.6217]
[1734860232480,56.06,185.87,185.59,14.10550605]
[1734860232679,14.10550605,185.76,185.59,14.10550605]
[1734860232883,0.95839698,185.75,185.59,14.10550605]
[1734860233070,0.95839698,185.75,185.64,2.6954]
[1734860233071,2.6946,185.7,185.64,2.6954]
[1734860233274,2.6946,185.7,185.64,5.7354]
[1734860233880,1.0,185.75,185.66,2.6951]
[1734860233881,2.6942,185.72,185.66,2.6951]
[1734860234081,1.0,185.75,185.64,3.04]
[1734860234581,2.6944,185.71,185.65,2.6951]
[1734860234782,1.0,185.75,185.66,3.04]
[1734860235774,1.0,185.75,185.7,2.6945]
[1734860236480,2.6935,185.77,185.7,2.6945]
[1734860237482,19.09620605,185.79,185.67,1.6835]
[1734860237684,19.09620605,185.79,185.66,4.7271]
[1734860237685,14.10550605,185.76,185.65,3.26]
[1734860237981,2.6942,185.72,185.65,5.9552]
[1734860238176,3.26,185.75,185.65,3.26]
[1734860238384,3.26,185.75,185.66,3.26]
[1734860238973,14.10550605,185.76,185.67,2.6948]
[1734860239174,3.26,185.78,185.66,3.26]
[1734860239877,2.6938,185.76,185.66,3.26]
[1734860240082,3.26,185.78,185.66,3.26]
[1734860240978,2.6938,185.75,185.66,3.26]
[1734860241478,3.26,185.78,185.66,3.26]
[1734860241680,2.6937,185.76,185.7,2.6944]
[1734860242080,3.26,185.78,185.66,3.26]
[1734860242280,3.26,185.78,185.72,2.6941]
[1734860242781,5.9535,185.78,185.72,2.6941]
[1734860242982,3.26,185.78,185.71,2.6943]
[1734860244483,2.6937,185.76,185.71,2.6943]
[1734860245486,3.26,185.78,185.67,1.6029]
[1734860245687,3.26,185.78,185.66,6.665]
[1734860246185,3.26,185.78,185.69,2.6945]
[1734860246385,3.26,185.78,185.62,14.10550605]
[1734860246581,1.0,185.77,185.63,3.26]
[1734860246784,2.6943,185.72,185.66,2.6949]
[1734860246981,1.0,185.77,185.64,3.26]
[1734860247182,2.6944,185.71,185.65,2.6951]
[1734860247377,2.6944,185.71,185.62,14.10550605]
[1734860247583,2.6944,185.71,185.63,3.26]
[1734860247789,2.6944,185.71,185.65,2.6951]
[1734860248080,2.6942,185.72,185.63,3.26]
[1734860248282,1.0,185.77,185.63,3.26]
[1734860248488,1.0,185.77,185.65,14.10550605]
[1734860248689,2.6936,185.76,185.65,14.10550605]
[1734860248884,2.6936,185.76,185.7,2.6944]
[1734860249086,2.6936,185.76,185.68,3.26]
[1734860250089,1.0,185.77,185.68,3.26]
[1734860250389,4.9907,185.79,185.72,2.6942]
[1734860250989,2.6935,185.77,185.72,2.6942]
[1734860253590,4.9907,185.79,185.69,3.26]
[1734860254483,2.6938,185.76,185.69,3.26]
[1734860254688,4.9907,185.79,185.69,3.26]
[1734860255088,2.6935,185.77,185.72,2.6941]
[1734860256784,2.6939,185.75,185.7,2.6944]
[1734860256983,4.9907,185.79,185.69,3.26]
[1734860257182,2.6935,185.77,185.72,2.6941]
[1734860257385,2.6935,185.77,185.69,3.26]
[1734860258194,2.6935,185.77,185.7,3.26]
[1734860258386,2.6933,185.79,185.7,3.26]
[1734860259292,3.26,185.83,185.7,3.26]
[1734860259590,2.6934,185.78,185.73,2.694]
[1734860260593,2.6934,185.78,185.7,3.26]
[1734860260594,3.26,185.83,185.7,3.26]
[1734860261094,14.10550605,185.83,185.7,3.26]
[1734860261397,3.26,185.82,185.7,3.26]
[1734860261696,2.6938,185.75,185.7,2.6943]
[1734860261992,18.36550605,185.82,185.7,8.77304236]
[1734860261993,4.26,185.82,185.7,8.77304236]
[1734860262395,2.6935,185.77,185.7,8.77304236]
[1734860262893,2.6935,185.77,185.72,2.6941]
[1734860263995,1.0,185.82,185.74,8.77304236]
[1734860264187,62.63330801,185.88,185.75,3.26]
[1734860264391,59.37330801,185.88,185.75,3.26]
[1734860264586,2.6924,185.85,185.79,2.6931]
[1734860264791,62.63330801,185.88,185.79,2.6931]
[1734860264998,4.9867,185.86,185.77,8.77304236]
[1734860265197,2.6921,185.87,185.82,2.6927]
[1734860265491,29.686654,185.89,185.83,8.77304236]
[1734860265694,29.686654,185.89,185.86,2.6921]
[1734860266196,7.4216635,185.96,185.83,3.3769]
[1734860266497,2.691,185.95,185.83,5.0421]
[1734860266693,7.4216635,185.96,185.83,5.0421]
[1734860267496,2.6912,185.93,185.83,5.0421]
[1734860268296,2.6914,185.92,185.85,2.6922]
[1734860268594,8.3351,185.97,185.86,3.34]
[1734860268993,2.691,185.94,185.88,2.6918]
[1734860269298,4.9951,185.97,185.86,3.34]
[1734860269701,3.34,186.0,185.86,3.34]
[1734860270191,2.6907,185.97,185.9,2.6915]
[1734860270401,3.3398,186.02,185.91,3.34]
[1734860270796,2.6904,185.99,185.91,3.34]
[1734860271197,3.34,186.05,185.91,17.35551271]
[1734860271494,45.38556671,186.06,185.92,3.4543]
[1734860271692,48.72556671,186.06,185.92,5.1631]
[1734860272095,2.6897,186.03,185.96,2.6907]
[1734860272398,2.6897,186.03,185.97,3.34]
[1734860272597,19.03891271,186.06,185.97,3.34]
[1734860272793,19.03891271,186.06,185.93,3.34]
[1734860273394,1.0,186.05,185.93,3.34]
[1734860273591,2.6901,186.01,185.94,2.6909]
[1734860273806,1.0,186.05,185.93,3.34]
[1734860274305,2.6899,186.02,185.93,3.34]
[1734860274598,2.6899,186.02,185.92,7.8543]
[1734860274599,14.01551271,185.98,185.84,14.01551271]
[1734860274795,14.01551271,185.95,185.77,5.0366]
[1734860275002,2.6916,185.9,185.78,3.32]
[1734860275396,2.6919,185.88,185.82,2.6926]
[1734860275596,3.32,185.94,185.79,3.32]
[1734860275999,2.6915,185.91,185.85,2.6923]
[1734860276596,2.6917,185.89,185.79,3.32]
[1734860276791,3.32,185.94,185.79,3.32]
[1734860277401,2.6916,185.91,185.85,2.6923]
[1734860277702,3.32,185.94,185.84,3.32]
[1734860277898,2.6913,185.93,185.87,2.692]
[1734860278196,2.714,185.97,185.84,3.32]
[1734860278400,2.714,185.97,185.85,3.2474]
[1734860278704,2.6911,185.94,185.86,4.3753]
[1734860278902,2.6911,185.94,185.86,1.6833]
[1734860279298,2.6914,185.92,185.85,5.9397]
[1734860279498,2.6914,185.92,185.85,3.2474]
[1734860280101,2.714,185.97,185.85,3.2474]
[1734860280405,2.714,185.97,185.84,3.32]
[1734860280406,2.6916,185.9,185.84,3.32]
[1734860280800,2.6914,185.92,185.84,3.32]
[1734860282402,2.6914,185.92,185.86,2.6921]
[1734860282703,1.6613,185.96,185.84,3.32]
[1734860283505,1.6613,185.96,185.85,3.32]
[1734860284207,1.0,185.97,185.85,17.33551271]
[1734860284402,4.8961,186.0,185.86,3.1835]
[1734860285406,2.6906,185.97,185.91,2.6913]
[1734860285707,2.6906,185.97,185.9,3.32]
[1734860287010,2.6906,185.97,185.91,2.6913]
[1734860288610,2.6906,185.97,185.92,2.6913]
[1734860289912,2.6902,186.0,185.94,2.691]
[1734860290210,2.6902,186.0,185.9,3.32]
[1734860290412,2.69,186.02,185.95,2.6907]
[1734860290615,3.32,186.03,185.95,2.6907]
[1734860291007,2.6896,186.04,185.99,2.6903]
[1734860291207,2.6896,186.04,185.99,6.0103]
[1734860291704,14.01551271,186.09,185.99,3.32]
[1734860291908,0.95643498,186.08,185.99,3.32]
[1734860292109,14.01551271,186.09,185.99,3.32]
[1734860292310,2.6898,186.03,185.99,3.32]
[1734860293309,29.686654,186.18,185.99,3.32]
[1734860293512,3.2865,186.15,186.01,14.01551271]
[1734860294305,3.2865,186.15,186.06,2.6894]
[1734860294510,14.01551271,186.14,186.05,3.32]
[1734860294713,2.689,186.1,186.03,2.6899]
[1734860295010,14.01551271,186.14,186.01,3.52]
[1734860295212,1.0,186.13,186.01,3.52]
[1734860295414,1.0,186.13,186.02,2.69]
[1734860296314,2.689,186.1,186.04,2.6898]
[1734860297011,2.6892,186.09,186.01,3.52]
[1734860297513,2.689,186.1,186.02,2.6901]
[1734860297810,17.53551271,186.11,185.97,3.52]
[1734860298016,14.01551271,186.08,185.95,5.2226]
[1734860298210,2.69,186.03,185.97,2.6907]
[1734860298417,3.52,186.11,185.95,19.23811271]
[1734860298611,2.6891,186.1,186.03,2.6899]
[1734860298813,2.6891,186.1,186.01,3.52]
[1734860299112,17.27891271,186.14,186.01,3.52]
[1734860299312,17.27891271,186.14,186.05,2.6897]
[1734860299313,2.6888,186.11,186.05,2.6897]
[1734860299514,3.2634,186.14,186.01,3.52]
[1734860300115,2.6889,186.11,186.01,3.52]
[1734860300714,3.2634,186.14,186.01,3.52]
[1734860300913,14.01551271,186.13,185.96,3.2869]
[1734860301218,14.01551271,186.1,185.97,3.52]
[1734860301416,3.52,186.09,185.97,3.52]
[1734860301816,2.6896,186.06,185.97,3.52]
[1734860302017,3.2634,186.14,185.99,2.6905]
[1734860302220,1.0,186.08,185.97,3.52]
[1734860302422,2.6901,186.03,185.97,3.52]
[1734860302720,3.52,186.07,185.92,14.01551271]
[1734860303023,14.9720543,186.06,185.89,17.53551271]
[1734860303225,0.95654159,186.05,185.89,3.52]
[1734860303517,2.6907,185.98,185.92,2.6915]
[1734860303720,4.2301,186.06,185.89,3.52]
[1734860303925,2.6902,186.02,185.96,2.691]
[1734860304518,2.69,186.03,185.97,2.6908]
[1734860305024,2.6891,186.1,186.02,2.6901]
[1734860305325,1.6127,186.11,186.01,3.52]
[1734860305521,1.6127,186.11,186.02,3.52]
[1734860305724,2.689,186.1,186.02,3.52]
[1734860305920,9.0568635,186.13,186.02,3.52]
[1734860306125,2.6884,186.14,186.08,2.6892]
[1734860306323,3.3185,186.17,186.03,14.01551271]
[1734860307424,2.6884,186.14,186.07,2.6894]
[1734860308026,2.6887,186.12,186.05,2.6896]
[1734860308725,2.6891,186.09,186.03,25.41513977]
[1734860308925,2.6891,186.09,186.03,2.6898]
[1734860309121,3.3185,186.17,186.02,3.94]
[1734860309316,2.6888,186.11,186.03,2.6898]
[1734860309919,3.94,186.14,186.0,22.72533977]
[1734860310125,2.6894,186.07,186.01,2.6901]
[1734860310318,22.72533977,186.13,185.99,3.94]
[1734860310526,2.6895,186.07,186.0,2.6903]
[1734860310725,23.72533977,186.13,186.0,2.6903]
[1734860310922,0.95622851,186.12,186.0,2.6903]
[1734860311426,2.6895,186.07,186.01,2.6902]
[1734860311630,1.7363,186.11,185.98,8.8836]
[1734860311931,2.6895,186.07,186.0,2.6903]
[1734860312322,2.6895,186.07,185.98,8.8836]
[1734860312527,22.72533977,186.1,185.98,3.94]
[1734860312729,3.94,186.09,185.95,3.94]
[1734860313029,2.6897,186.05,185.99,2.6905]
[1734860316431,24.37513977,186.07,185.91,22.72533977]
[1734860316628,24.37513977,186.07,185.9,3.94]
[1734860316826,2.6907,185.99,185.92,2.6915]
[1734860317029,3.94,186.03,185.91,22.72533977]
[1734860320130,2.6909,185.97,185.92,2.6915]
[1734860320531,1.7211,186.02,185.88,28.38223977]
[1734860320729,1.7211,186.02,185.88,24.44223977]
[1734860321037,2.7211,186.02,185.88,24.44223977]
[1734860321228,23.68206233,186.01,185.87,1.6129]
[1734860321430,0.95677075,186.0,185.87,1.6129]
[1734860321633,22.72533977,186.01,185.87,1.6129]
[1734860321829,0.95680839,186.0,185.87,1.6129]
[1734860322034,1.0,186.0,185.87,1.6129]
[1734860322440,2.6913,185.95,185.89,2.692]
[1734860322833,2.691,185.97,185.92,2.6916]
[1734860323038,1.0,186.0,185.89,3.94]
[1734860323232,1.0,186.0,185.9,1.6434]
[1734860324040,1.0,186.0,185.94,2.6913]
[1734860325237,3.6906,186.0,185.94,2.6913]
[1734860325643,1.0,186.0,185.91,2.6916]
[1734860326037,1.0,186.0,185.9,1.6434]
[1734860326236,2.691,185.97,185.91,2.6917]
[1734860326436,1.0,186.0,185.87,1.6129]
[1734860327032,1.0,186.0,185.89,2.6919]
[1734860327634,2.6913,185.95,185.89,2.6919]
[1734860327835,2.6913,185.95,185.9,2.6918]
[1734860328042,1.0,186.0,185.87,1.6129]
[1734860328540,2.691,185.96,185.91,2.6916]
[1734860328740,2.691,185.96,185.87,1.6129]
[1734860329440,2.691,185.96,185.9,2.6917]
[1734860329641,2.691,185.96,185.87,1.6129]
[1734860330046,2.691,185.96,185.9,2.6917]
[1734860331442,2.691,185.96,185.91,2.6916]
[1734860332642,17.95033666,185.95,185.81,1.715]
[1734860332839,14.01033666,185.92,185.81,1.715]
[1734860333039,14.01033666,185.92,185.81,4.4081]
[1734860333040,2.6924,185.87,185.81,4.4081]
[1734860333240,1.6714,185.93,185.78,7.3229]
[1734860333542,1.6714,185.93,185.79,15.67863666]
[1734860333742,2.6917,185.91,185.83,2.6928]
[1734860333941,1.6714,185.93,185.79,15.67863666]
[1734860334245,2.6921,185.89,185.84,2.6926]
[1734860334432,1.6714,185.93,185.79,15.67863666]
[1734860334846,2.6919,185.9,185.84,2.6926]
[1734860335545,2.6922,185.88,185.82,2.6929]
[1734860335947,15.68173666,185.93,185.8,3.76]
[1734860336141,2.692,185.9,185.84,2.6926]
[1734860336741,15.68173666,185.93,185.8,3.76]
[1734860336942,15.68173666,185.93,185.82,2.693]
[1734860337647,1.0,185.92,185.81,2.6932]
[1734860338042,1.0,185.92,185.8,2.6933]
[1734860338239,14.01033666,185.9,185.79,1.6683]
[1734860338444,2.6927,185.85,185.79,1.6683]
[1734860338646,3.76,185.89,185.79,2.6933]
[1734860338842,3.76,185.89,185.78,3.3829]
[1734860339147,3.76,185.89,185.77,112.03409848]
[1734860339344,14.01033666,185.87,185.77,112.03409848]
[1734860339744,2.6929,185.82,185.76,2.6936]
[1734860340142,3.76,185.84,185.74,1.6307]
[1734860340342,3.76,185.84,185.74,4.3247]
[1734860340753,2.693,185.81,185.74,1.6307]
[1734860340947,3.76,185.84,185.75,2.6938]
[1734860341149,3.76,185.84,185.74,1.6307]
[1734860341346,17.77033666,185.84,185.74,1.6307]
[1734860341547,17.77033666,185.84,185.71,5.5091]
[1734860341548,17.77033666,185.84,185.71,4.4235]
[1734860341746,14.01033666,185.81,185.7,1.5689]
[1734860342052,2.6938,185.76,185.7,1.5689]
[1734860342249,3.78,185.78,185.7,4.2635]
[1734860342547,17.79033666,185.78,185.66,5.3784]
[1734860342951,17.79033666,185.78,185.66,1.5984]
[1734860343153,2.6944,185.72,185.66,1.5984]
[1734860343351,3.78,185.73,185.65,1.6025]
[1734860343558,3.78,185.73,185.59,3.78]
[1734860343756,14.01033666,185.72,185.59,3.78]
[1734860344158,22.83736972,185.72,185.59,3.78]
[1734860344656,2.695,185.68,185.62,2.6957]
[1734860345057,22.83736972,185.72,185.57,3.78]
[1734860345460,3.78,185.73,185.56,5.0718]
[1734860345461,22.83736972,185.69,185.56,5.0718]
[1734860345858,2.6956,185.65,185.57,2.6965]
[1734860346052,2.6956,185.65,185.56,5.0718]
[1734860346460,2.6956,185.64,185.58,2.6964]
[1734860346960,2.6951,185.68,185.56,27.90916972]
[1734860347554,2.6951,185.68,185.6,2.696]
[1734860348561,3.78,185.69,185.6,2.696]
[1734860348756,2.6951,185.67,185.6,2.696]
[1734860348956,1.0,185.71,185.59,26.61736972]
[1734860349162,1.0,185.71,185.62,22.83736972]
[1734860349364,28.29036972,185.77,185.65,2.6953]
[1734860349565,29.89076972,185.77,185.65,2.6953]
[1734860350266,29.89076972,185.77,185.63,3.78]
[1734860350465,2.6942,185.74,185.64,3.2197]
[1734860350663,2.6942,185.74,185.65,1.5753]
[1734860350856,29.89076972,185.77,185.68,2.695]
[1734860351165,5.453,185.77,185.65,1.5753]
[1734860351360,4.3668,185.77,185.7,2.6946]
[1734860351863,3.78,185.78,185.65,24.41266972]
[1734860352069,3.78,185.78,185.65,1.5753]
[1734860352258,22.83736972,185.77,185.65,1.5753]
[1734860352670,2.6944,185.72,185.66,2.6952]
[1734860352870,22.83736972,185.77,185.65,1.5753]
[1734860353266,2.6943,185.73,185.67,2.6951]
[1734860353476,22.83736972,185.77,185.65,1.5753]
[1734860354874,22.83736972,185.77,185.67,2.6951]
[1734860355275,22.83736972,185.77,185.65,1.5753]
[1734860355572,1.6107,185.76,185.65,1.5753]
[1734860355774,2.6945,185.72,185.66,2.6952]
[1734860357371,1.6107,185.76,185.65,1.5753]
[1734860357572,2.6949,185.69,185.64,2.6955]
[1734860357875,2.6949,185.69,185.6,3.78]
[1734860358078,2.6949,185.69,185.63,2.6956]
[1734860358568,2.6947,185.7,185.64,2.6956]
[1734860359469,2.6944,185.73,185.67,2.6951]
[1734860359678,3.78,185.79,185.65,3.78]
[1734860359874,3.78,185.79,185.66,8.9465]
[1734860360072,2.6945,185.72,185.67,2.6951]
[1734860360279,22.83736972,185.77,185.66,8.9465]
[1734860360779,2.6944,185.73,185.68,2.695]
[1734860360979,22.83736972,185.77,185.68,2.695]
[1734860361277,3.78,185.78,185.66,8.9465]
[1734860361578,2.694,185.76,185.71,2.6945]
[1734860361976,3.78,185.79,185.66,8.9465]
[1734860362175,2.6937,185.77,185.66,8.9465]
[1734860362375,26.61736972,185.8,185.66,8.9465]
[1734860363179,2.6939,185.76,185.7,2.6946]